fUST/lending_fUST_20240907
["ID","MTS","AMOUNT","RATE_DAILY","PERIOD"]
[337478160,1725687039687,-30273.1103276,0.0004886,6]
[337478162,1725687039723,-55136.0132344,0.0004886,6]
[337478197,1725687040437,-425.213385,0.0004886,120]
[337478198,1725687040447,-151.0,0.0004886,120]
[337478199,1725687040456,-54461.2389726,0.0004886,6]
[337478200,1725687040466,-500.0,0.00048869,120]
[337478201,1725687040476,-508.19832027,0.00048869,120]
[337478202,1725687040485,-500.0,0.00048869,120]
[337478203,1725687040571,-500.0,0.00048869,120]
[337478204,1725687040581,-604.28030698,0.00048869,120]
[337478205,1725687040590,-500.0,0.00048869,120]
[337478206,1725687040600,-500.0,0.00048869,120]
[337478207,1725687040609,-163.9284,0.0004887,120]
[337478208,1725687040619,-240.157004,0.0004887,120]
[337478209,1725687040630,-240.157004,0.0004887,120]
[337478210,1725687040639,-151.0,0.0004887,120]
[337478211,1725687040648,-151.0,0.0004887,120]
[337478212,1725687040660,-539.695848,0.0004887,120]
[337478213,1725687040671,-539.695848,0.0004887,120]
[337478214,1725687040680,-596.079868,0.0004887,120]
[337478215,1725687040691,-596.079868,0.0004887,120]
[337478216,1725687040702,-188.290021,0.0004887,120]
[337478217,1725687040712,-188.290021,0.0004887,120]
[337478218,1725687040721,-217.702838,0.0004887,120]
[337478219,1725687040731,-217.702838,0.0004887,120]
[337478220,1725687040740,-151.0,0.0004887,120]
[337478221,1725687040750,-151.0,0.0004887,120]
[337478222,1725687040762,-151.0,0.0004887,120]
[337478223,1725687040772,-151.0,0.0004887,120]
[337478224,1725687040781,-151.584764,0.0004887,30]
[337478225,1725687040790,-202.25706,0.0004887,120]
[337478226,1725687040799,-202.25706,0.0004887,120]
[337478227,1725687040808,-172.842646,0.0004887,120]
[337478228,1725687040817,-172.842646,0.0004887,120]
[337478229,1725687040827,-151.0,0.0004887,120]
[337478230,1725687040836,-431.249007,0.0004887,120]
[337478231,1725687040845,-431.249007,0.0004887,120]
[337478232,1725687040854,-151.0,0.0004887,120]
[337478233,1725687040863,-151.0,0.0004887,120]
[337478234,1725687040872,-2863.374624,0.0004887,90]
[337478235,1725687040882,-707.02138807,0.0004887,90]
[337478249,1725687042999,-265.54697076,0.0004887,90]
[337478260,1725687043263,-1890.80626517,0.0004887,90]
[337478261,1725687043273,-1077.741533,0.0004887,120]
[337478262,1725687043282,-1077.741533,0.0004887,120]
[337478263,1725687043291,-151.0,0.0004887,120]
[337478264,1725687043301,-151.0,0.0004887,120]
[337478265,1725687043309,-1103.73988,0.0004887,120]
[337478266,1725687043319,-1103.73988,0.0004887,120]
[337478267,1725687043328,-234.829465,0.0004887,120]
[337478268,1725687043337,-234.829465,0.0004887,120]
[337478269,1725687043346,-151.0,0.0004887,120]
[337478270,1725687043356,-272.791932,0.0004887,120]
[337478271,1725687043366,-151.0,0.0004887,120]
[337478272,1725687043375,-151.0,0.0004887,120]
[337478273,1725687043384,-151.0,0.0004887,120]
[337478274,1725687043394,-151.0,0.0004887,120]
[337478275,1725687043403,-151.0,0.0004887,120]
[337478276,1725687043411,-151.0,0.0004887,120]
[337478277,1725687043420,-193.886292,0.0004887,120]
[337478278,1725687043430,-193.886292,0.0004887,120]
[337478279,1725687043441,-151.805817,0.0004887,120]
[337478280,1725687043450,-193.422387,0.0004887,120]
[337478281,1725687043459,-1014.744585,0.0004887,120]
[337478282,1725687043469,-1014.744585,0.0004887,120]
[337478283,1725687043478,-151.0,0.0004887,120]
[337478284,1725687043487,-151.0,0.0004887,120]
[337478285,1725687043496,-472.307831,0.0004887,120]
[337478286,1725687043505,-1506.108184,0.0004887,120]
[337478287,1725687043514,-472.307831,0.0004887,120]
[337478288,1725687043523,-505.491945,0.0004887,120]
[337478289,1725687043533,-1506.108184,0.0004887,120]
[337478290,1725687043542,-505.491945,0.0004887,120]
[337478291,1725687043551,-985.472174,0.0004887,120]
[337478292,1725687043561,-985.472174,0.0004887,120]
[337478293,1725687043570,-151.0,0.0004887,120]
[337478294,1725687043579,-428.562295,0.0004887,120]
[337478295,1725687043590,-428.562295,0.0004887,120]
[337478296,1725687043599,-196.144612,0.0004887,120]
[337478297,1725687043608,-196.144612,0.0004887,120]
[337478298,1725687043618,-151.0,0.0004887,120]
[337478299,1725687043630,-151.0,0.0004887,120]
[337478300,1725687043639,-438.062106,0.0004887,120]
[337478301,1725687043648,-438.062106,0.0004887,120]
[337478302,1725687043659,-6546.01,0.00048928,3]
[337478303,1725687043670,-30273.1103276,0.00048938,6]
[337478304,1725687043679,-72789.64704577,0.00048938,6]
[337478305,1725687043697,-987.2586095,0.00048938,6]
[337478317,1725687046325,-151.0,0.0004886,120]
[337478318,1725687046334,-35820.34655173,0.00048938,6]
[337478319,1725687046343,-152.111515,0.00048938,120]
[337478320,1725687046353,-431.249007,0.00048938,120]
[337478321,1725687046363,-431.249007,0.00048938,120]
[337478322,1725687046372,-151.0,0.00048938,120]
[337478323,1725687046381,-151.0,0.00048938,120]
[337478324,1725687046390,-2863.374624,0.00048938,90]
[337478325,1725687046400,-2863.374624,0.00048938,90]
[337478326,1725687046409,-1077.741533,0.00048938,120]
[337478327,1725687046418,-1077.741533,0.00048938,120]
[337478328,1725687046427,-151.0,0.00048938,120]
[337478329,1725687046438,-151.0,0.00048938,120]
[337478330,1725687046447,-1103.73988,0.00048938,120]
[337478331,1725687046456,-1103.73988,0.00048938,120]
[337478332,1725687046466,-234.829465,0.00048938,120]
[337478333,1725687046475,-234.829465,0.00048938,120]
[337478334,1725687046484,-151.0,0.00048938,120]
[337478335,1725687046493,-151.0,0.00048938,120]
[337478336,1725687046503,-151.0,0.00048938,120]
[337478337,1725687046512,-151.0,0.00048938,120]
[337478338,1725687046522,-151.0,0.00048938,120]
[337478339,1725687046531,-151.0,0.00048938,120]
[337478340,1725687046541,-151.0,0.00048938,120]
[337478341,1725687046551,-193.886292,0.00048938,120]
[337478342,1725687046560,-193.886292,0.00048938,120]
[337478343,1725687046569,-1014.744585,0.00048938,120]
[337478344,1725687046578,-1014.744585,0.00048938,120]
[337478345,1725687046590,-151.0,0.00048938,120]
[337478346,1725687046602,-151.0,0.00048938,120]
[337478347,1725687046611,-472.307831,0.00048938,120]
[337478348,1725687046620,-1506.108184,0.00048938,120]
[337478349,1725687046631,-376.99514628,0.00048938,120]
[337478359,1725687950109,-267.96826148,0.00034,61]
[337478360,1725687956101,-127.11173852,0.00034,61]
[337478361,1725687956128,-162.267147,0.00038172,2]
[337478362,1725687956149,-164.8443089,0.00038245,2]
[337478363,1725687956170,-256.7630114,0.00038247,2]
[337478364,1725687956192,-162.267147,0.00038338,2]
[337478365,1725687956215,-162.267147,0.00038504,2]
[337478366,1725687956236,-162.267147,0.0003867,2]
[337478367,1725687956258,-162.267147,0.00038835,2]
[337478368,1725687956284,-162.267147,0.00039001,2]
[337478369,1725687956304,-225.0135201,0.00039028,2]
[337478370,1725687956326,-162.267147,0.00039167,2]
[337478371,1725687956347,-162.267147,0.00039333,2]
[337478372,1725687956368,-33.88438286,0.00039498,2]
[337478374,1725688047115,-128.38276414,0.00039498,2]
[337478375,1725688047137,-162.267147,0.00039664,2]
[337478376,1725688047161,-162.267147,0.0003983,2]
[337478377,1725688047183,-166.781254,0.00039854,2]
[337478378,1725688047204,-162.267147,0.00039996,2]
[337478379,1725688047226,-162.267147,0.00040161,2]
[337478380,1725688047246,-146.01512669,0.000425,120]
[337478381,1725688052142,-1945.98798412,0.000425,120]
[337478382,1725688052165,-568.218,0.00048561,84]
[337478383,1725688052186,-254.27125085,0.00048561,2]
[337478384,1725688052206,-248.56981436,0.00048669,2]
[337478385,1725688052226,-674.7025,0.00048688,120]
[337478386,1725688052247,-500.0,0.00048688,120]
[337478387,1725688052269,-500.0,0.00048688,120]
[337478388,1725688052289,-500.0,0.00048688,120]
[337478389,1725688052310,-500.0,0.00048688,120]
[337478390,1725688052332,-500.0,0.00048688,120]
[337478391,1725688052354,-78.35990989,0.00048688,120]
[337478477,1725688238398,-69110.72385739,0.00048301,2]
[337478479,1725688238408,-8600.94,0.00048466,3]
[337478481,1725688238418,-500.0,0.00048475,120]
[337478483,1725688238427,-198.73035736,0.00048475,7]
[337478485,1725688238437,-500.0,0.00048475,120]
[337478487,1725688238446,-500.0,0.00048475,120]
[337478489,1725688238455,-500.0,0.00048475,120]
[337478491,1725688238465,-500.0,0.00048475,120]
[337478493,1725688238476,-500.0,0.00048475,120]
[337478495,1725688238486,-500.0,0.00048475,120]
[337478497,1725688238496,-500.0,0.00048475,120]
[337478499,1725688238506,-500.0,0.00048475,120]
[337478501,1725688238515,-500.0,0.00048475,120]
[337478503,1725688238525,-500.0,0.00048475,120]
[337478505,1725688238535,-500.0,0.00048475,120]
[337478508,1725688238547,-500.0,0.00048475,120]
[337478510,1725688238556,-500.0,0.00048475,120]
[337478512,1725688238566,-500.0,0.00048475,120]
[337478514,1725688238575,-355.05373758,0.00048475,120]
[337478516,1725688238585,-500.0,0.00048475,120]
[337478518,1725688238594,-500.0,0.00048475,120]
[337478520,1725688238604,-500.0,0.00048475,120]
[337478522,1725688238614,-500.0,0.00048475,120]
[337478524,1725688238624,-500.0,0.00048475,120]
[337478526,1725688238633,-500.0,0.00048475,120]
[337478528,1725688238643,-500.0,0.00048475,120]
[337478530,1725688238652,-194794.15038205,0.00048476,2]
[337478532,1725688238664,-34239.30256795,0.00048476,2]
[337478534,1725688238673,-6027.42,0.00048477,3]
[337478536,1725688238683,-10321.13,0.00048477,3]
[337478538,1725688238693,-410.1493314,0.00048488,120]
[337478540,1725688238704,-410.1493314,0.00048488,120]
[337478542,1725688238713,-410.1493314,0.00048488,120]
[337478544,1725688238723,-410.1493314,0.00048488,120]
[337478546,1725688238733,-410.1493314,0.00048488,120]
[337478548,1725688238742,-780.95732988,0.00048588,28]
[337478550,1725688238752,-198.85585148,0.00048639,2]
[337478552,1725688238762,-198.85585146,0.00048654,2]
[337478554,1725688238772,-923.64919987,0.00048659,2]
[337478556,1725688238782,-198.85585146,0.00048669,2]
[337478558,1725688238791,-1000.0,0.00048669,2]
[337478560,1725688238801,-809.05,0.00048679,30]
[337478562,1725688238810,-198.85585146,0.00048684,2]
[337478564,1725688238819,-533.12924915,0.00048687,120]
[337478566,1725688238830,-500.0,0.00048687,120]
[337478568,1725688238839,-499.99683721,0.00048687,120]
[337478570,1725688238849,-508.19832027,0.00048688,120]
[337478572,1725688238858,-500.0,0.00048688,120]
[337478574,1725688238868,-260.95070345,0.00048688,31]
[337478576,1725688238878,-500.0,0.00048688,120]
[337478578,1725688238887,-500.0,0.00048688,120]
[337478580,1725688238896,-604.28030698,0.00048688,120]
[337478583,1725688238906,-500.0,0.00048688,120]
[337478585,1725688238916,-500.0,0.00048688,120]
[337478587,1725688238925,-500.0,0.00048688,120]
[337478588,1725688238934,-500.0,0.00048688,120]
[337478591,1725688238944,-431.94934583,0.00048688,120]
[337478593,1725688238954,-500.0,0.00048688,120]
[337478595,1725688238963,-508.92198265,0.00048688,120]
[337478596,1725688238972,-500.0,0.00048688,120]
[337478598,1725688238983,-500.0,0.00048688,120]
[337478601,1725688238992,-200.0,0.00048688,120]
[337478603,1725688239002,-500.0,0.00048688,120]
[337478605,1725688239011,-500.0,0.00048688,120]
[337478607,1725688239021,-500.0,0.00048688,120]
[337478609,1725688239034,-500.0,0.00048688,120]
[337478611,1725688239043,-500.0,0.00048688,120]
[337478613,1725688239052,-500.0,0.00048688,21]
[337478615,1725688239062,-500.0,0.00048688,120]
[337478617,1725688239076,-500.0,0.00048688,120]
[337478619,1725688239086,-500.0,0.00048688,120]
[337478621,1725688239097,-500.0,0.00048688,120]
[337478623,1725688239107,-500.0,0.00048688,120]
[337478625,1725688239117,-500.0,0.00048688,120]
[337478627,1725688239126,-500.0,0.00048688,120]
[337478629,1725688239135,-528.48694611,0.00048688,120]
[337478631,1725688239145,-357.73670456,0.00048688,120]
[337478633,1725688239154,-506.1740678,0.00048688,120]
[337478635,1725688239164,-2500.01,0.00048688,120]
[337478637,1725688239173,-501.01889679,0.00048688,120]
[337478639,1725688239183,-502.18117332,0.00048688,120]
[337478641,1725688239192,-500.0,0.00048688,120]
[337478643,1725688239202,-201.62996343,0.00048688,7]
[337478645,1725688239212,-500.0,0.00048688,120]
[337478647,1725688239222,-500.0,0.00048688,120]
[337478649,1725688239231,-500.0,0.00048688,120]
[337478651,1725688239241,-500.0,0.00048688,120]
[337478653,1725688239250,-506.41009515,0.00048688,120]
[337478655,1725688239260,-473.12917506,0.00048688,120]
[337478657,1725688239270,-500.0,0.00048688,120]
[337478659,1725688239280,-500.0,0.00048688,120]
[337478661,1725688239290,-500.0,0.00048688,120]
[337478663,1725688239299,-500.0,0.00048688,120]
[337478665,1725688239308,-500.0,0.00048688,120]
[337478667,1725688239318,-500.0,0.00048688,120]
[337478669,1725688239330,-500.0,0.00048688,120]
[337478671,1725688239339,-500.0,0.00048688,120]
[337478674,1725688239350,-500.0,0.00048688,120]
[337478676,1725688239360,-500.0,0.00048688,120]
[337478678,1725688239369,-502.31577555,0.00048688,120]
[337478680,1725688239379,-500.0,0.00048688,120]
[337478682,1725688239389,-500.0,0.00048688,120]
[337478684,1725688239398,-500.0,0.00048688,120]
[337478686,1725688239407,-505.01344244,0.00048688,120]
[337478688,1725688239417,-500.0,0.00048688,120]
[337478690,1725688239426,-548.26458868,0.00048688,120]
[337478694,1725688239459,-715.99541132,0.00048688,120]
[337478696,1725688239468,-914.26,0.00048688,120]
[337478698,1725688239477,-503.33226166,0.00048688,120]
[337478701,1725688239487,-129.91232702,0.00048688,120]
[337478703,1725688239499,-370.08767298,0.00048688,120]
[337478705,1725688239509,-527.2778115,0.00048688,120]
[337478707,1725688239519,-667.675,0.00048688,120]
[337478709,1725688239528,-502.08746993,0.00048688,7]
[337478711,1725688239538,-506.86593732,0.00048688,120]
[337478722,1725688239634,-500.0,0.00048688,120]
[337478725,1725688239646,-504.90146678,0.00048688,120]
[337478727,1725688239655,-500.0,0.00048688,120]
[337478729,1725688239665,-500.0,0.00048688,120]
[337478731,1725688239674,-588.00984201,0.00048688,120]
[337478733,1725688239683,-510.36758545,0.00048688,120]
[337478735,1725688239692,-512.53106057,0.00048688,120]
[337478737,1725688239702,-500.0,0.00048688,120]
[337478739,1725688239711,-500.0,0.00048688,120]
[337478741,1725688239721,-500.0,0.00048688,120]
[337478743,1725688239730,-500.0,0.00048688,120]
[337478745,1725688239739,-500.0,0.00048688,120]
[337478747,1725688239748,-500.0,0.00048688,120]
[337478749,1725688239758,-1007.51,0.00048688,120]
[337478751,1725688239767,-508.43648621,0.00048688,120]
[337478753,1725688239776,-500.0,0.00048688,120]
[337478755,1725688239785,-506.14992663,0.00048688,120]
[337478757,1725688239794,-500.0,0.00048688,120]
[337478759,1725688239803,-500.0,0.00048688,120]
[337478761,1725688239813,-500.0,0.00048688,120]
[337478763,1725688239824,-1596.24,0.00048688,120]
[337478765,1725688239835,-503.15948272,0.00048688,120]
[337478767,1725688239845,-500.0,0.00048688,120]
[337478769,1725688239856,-500.0,0.00048688,120]
[337478771,1725688239866,-500.0,0.00048688,120]
[337478773,1725688239875,-500.0,0.00048688,120]
[337478775,1725688239884,-500.0,0.00048688,120]
[337478777,1725688239893,-500.0,0.00048688,120]
[337478779,1725688239903,-497.45026976,0.00048688,120]
[337478781,1725688239912,-502.6238922,0.00048688,120]
[337478783,1725688239922,-435.73315701,0.00048688,120]
[337478845,1725688240490,-7167.45,0.00048466,3]
[337478848,1725688240500,-64.26684299,0.00048688,120]
[337478850,1725688240511,-632.41858761,0.00048688,120]
[337478852,1725688240521,-500.0,0.00048688,120]
[337478854,1725688240531,-500.0,0.00048688,120]
[337478856,1725688240541,-500.0,0.00048688,120]
[337478858,1725688240551,-537.67147912,0.00048688,120]
[337478860,1725688240561,-500.0,0.00048688,120]
[337478862,1725688240571,-500.0,0.00048688,120]
[337478864,1725688240589,-500.0,0.00048688,120]
[337478866,1725688240599,-423.39301594,0.00048688,120]
[337478868,1725688240609,-500.0,0.00048688,120]
[337478870,1725688240619,-627.4306351,0.00048688,120]
[337478872,1725688240628,-500.0,0.00048688,120]
[337478874,1725688240638,-502.99736432,0.00048688,120]
[337478876,1725688240648,-500.0,0.00048688,120]
[337478878,1725688240657,-1669.09,0.00048688,120]
[337478880,1725688240667,-500.0,0.00048688,120]
[337478882,1725688240677,-500.0,0.00048688,120]
[337478884,1725688240686,-505.83783957,0.00048688,120]
[337478887,1725688240697,-500.0,0.00048688,120]
[337478889,1725688240706,-500.0,0.00048688,120]
[337478891,1725688240716,-515.55805953,0.00048688,120]
[337478893,1725688240726,-500.0,0.00048688,120]
[337478895,1725688240735,-500.0,0.00048688,120]
[337478897,1725688240745,-500.0,0.00048688,120]
[337478899,1725688240754,-500.0,0.00048688,120]
[337478901,1725688240764,-500.0,0.00048688,120]
[337478903,1725688240773,-500.0,0.00048688,120]
[337478905,1725688240783,-500.0,0.00048688,120]
[337478907,1725688240792,-888.44,0.00048688,120]
[337478909,1725688240801,-201.07624338,0.00048688,120]
[337478911,1725688240810,-500.0,0.00048688,120]
[337478913,1725688240819,-3035.27,0.00048688,120]
[337478915,1725688240832,-500.0,0.00048688,120]
[337478917,1725688240841,-41300.48867736,0.00048689,120]
[337478920,1725688240854,-342.80499812,0.00048689,120]
[337479054,1725688243414,-0.87495742,0.00048688,21]
[337479059,1725688243427,-499.12504258,0.00048688,21]
[337479061,1725688243436,-13911.70632452,0.00048689,120]
[337479064,1725688243446,-198.85585146,0.00048699,2]
[337479067,1725688243457,-10299.61,0.000487,30]
[337479071,1725688243467,-500.0,0.00048717,120]
[337479075,1725688243478,-482.18537527,0.00048717,120]
[337479078,1725688243490,-28759.4548112,0.00048718,6]
[337479081,1725688243501,-53869.49341627,0.00048718,6]
[337479170,1725688314473,250.0,0.00042937,2]
[337479171,1725688314688,250.0,0.00043055,2]
[337479172,1725688314900,250.0,0.00043172,2]
[337479173,1725688315110,250.0,0.0004329,2]
[337479174,1725688315318,250.0,0.00043408,2]
[337479175,1725688315541,250.0,0.00043526,2]
[337479176,1725688315836,250.0,0.00043643,2]
[337479177,1725688315947,140.63148079,0.00043761,2]
[337479178,1725688315969,109.36851921,0.00043761,2]
[337479179,1725688316167,250.0,0.00043879,2]
[337479180,1725688316391,250.0,0.00043997,2]
[337479181,1725688316589,250.0,0.00044114,2]
[337479182,1725688316850,250.0,0.00044232,2]
[337479183,1725688317056,250.0,0.0004435,2]
[337479184,1725688317268,250.0,0.00044468,2]
[337479185,1725688317478,250.0,0.00044585,2]
[337479186,1725688317757,250.0,0.00044703,2]
[337479187,1725688318227,250.0,0.00044821,2]
[337479188,1725688318448,250.0,0.00044939,2]
[337479189,1725688318661,250.0,0.00045056,2]
[337479190,1725688318862,250.0,0.00045174,2]
[337479192,1725688394746,3000.0,0.00021,2]
[337479193,1725688395982,3000.0,0.0002101,2]
[337479194,1725688396568,3000.0,0.0002102,2]
[337479195,1725688396875,1000.0,0.0002103,2]
[337479196,1725688396900,2000.0,0.0002103,2]
[337479197,1725688397256,3000.0,0.0002104,2]
[337479198,1725688397815,3000.0,0.0002105,2]
[337479199,1725688398252,2000.0,0.0002106,2]
[337479200,1725688398278,1000.0,0.0002106,2]
[337479201,1725688398635,3000.0,0.0002107,2]
[337479202,1725688399243,3000.0,0.0002108,2]
[337479203,1725688399588,880.38990076,0.0002109,2]
[337479204,1725688399614,2443.46028924,0.0002109,2]
[337479207,1725688837503,500.0,0.000275,2]
[337479209,1725688992069,150.0,0.00021,2]
[337479212,1725689143182,-548.5613762,0.00028783,2]
[337479213,1725689143203,-401.05084169,0.0003036,2]
[337479215,1725689226169,-285.69753556,0.0003036,2]
[337479216,1725689235121,-150.81003149,0.0003036,2]
[337479217,1725689235143,-170.427512,0.00033444,2]
[337479218,1725689235166,-400.0,0.00033757,2]
[337479219,1725689235187,-300.0,0.00033757,2]
[337479220,1725689235208,-2047.010042,0.00033758,2]
[337479221,1725689235228,-251.17474011,0.00033758,3]
[337479222,1725689243116,-874.08483671,0.00033758,3]
[337479227,1725689347117,-1662.0273046,0.00030748,2]
[337479228,1725689347139,-225.8609559,0.00030914,2]
[337479229,1725689347160,-400.0,0.00033102,2]
[337479230,1725689347182,-24900.0,0.00033103,2]
[337479231,1725689347203,-251.28877009,0.00033589,22]
[337479232,1725689347236,-501.08369789,0.0003375,5]
[337479233,1725689347261,-5084.4531125,0.00033758,3]
[337479234,1725689347282,-448.8973773,0.00034204,2]
[337479235,1725689347306,-10000.0,0.00034234,62]
[337479236,1725689347328,-374.08872055,0.00034299,2]
[337479237,1725689348130,-2959.24461245,0.00034299,2]
[337479238,1725689348153,-157.14079,0.00034416,2]
[337479239,1725689348176,-231.8596939,0.00034621,2]
[337479240,1725689348198,-157.14079,0.00034715,2]
[337479241,1725689348221,-3333.333333,0.00034984,2]
[337479242,1725689348243,-157.14079,0.00035013,2]
[337479243,1725689348266,-157.14079,0.00035312,2]
[337479244,1725689348288,-157.14079,0.00035611,2]
[337479245,1725689348309,-3333.333333,0.00035669,2]
[337479246,1725689348336,-157.14079,0.0003591,2]
[337479247,1725689348357,-157.14079,0.00036209,2]
[337479248,1725689348380,-454.575,0.00040089,57]
[337479249,1725689348401,-500.80759738,0.000401,5]
[337479250,1725689348421,-160.57516774,0.000401,5]
[337479251,1725689348445,-260.47790544,0.000401,5]
[337479252,1725689348466,-158.69290709,0.000401,5]
[337479253,1725689348489,-501.13917964,0.000401,2]
[337479254,1725689348510,-500.0,0.000401,2]
[337479255,1725689348531,-500.0,0.00040648,2]
[337479256,1725689348639,-172.473797,0.00042453,2]
[337479257,1725689348665,-1000.0,0.00046,120]
[337479258,1725689348690,-10596.1,0.00046555,3]
[337479259,1725689348711,-8830.09,0.00046555,3]
[337479260,1725689348734,-508.19832027,0.00046564,120]
[337479261,1725689348758,-500.0,0.00046564,120]
[337479262,1725689348780,-260.95070345,0.00046564,31]
[337479263,1725689348802,-500.0,0.00046564,120]
[337479264,1725689348823,-500.0,0.00046564,120]
[337479265,1725689348845,-500.0,0.00046564,120]
[337479266,1725689348868,-500.0,0.00046564,120]
[337479267,1725689348890,-604.28030698,0.00046564,120]
[337479268,1725689348915,-500.0,0.00046564,7]
[337479269,1725689348939,-500.0,0.00046564,7]
[337479270,1725689348963,-500.0,0.00046564,120]
[337479271,1725689348983,-500.0,0.00046564,120]
[337479272,1725689349004,-500.0,0.00046564,31]
[337479273,1725689349025,-500.0,0.00046564,7]
[337479274,1725689349048,-500.0,0.00046564,120]
[337479275,1725689349069,-500.0,0.00046564,120]
[337479276,1725689349091,-500.0,0.00046564,120]
[337479277,1725689349113,-500.0,0.00046564,7]
[337479278,1725689349134,-500.0,0.00046564,120]
[337479279,1725689349155,-500.0,0.00046564,31]
[337479280,1725689349175,-500.0,0.00046564,120]
[337479281,1725689349198,-500.0,0.00046564,120]
[337479282,1725689349221,-500.0,0.00046564,7]
[337479283,1725689349242,-500.0,0.00046564,120]
[337479284,1725689349263,-293.88025176,0.00046564,7]
[337479285,1725689349301,-441.16281248,0.00046564,31]
[337479286,1725689349333,-500.0,0.00046564,120]
[337479287,1725689349371,-500.0,0.00046564,120]
[337479288,1725689349406,-500.0,0.00046564,7]
[337479289,1725689349441,-500.0,0.00046564,120]
[337479290,1725689349470,-500.0,0.00046564,120]
[337479291,1725689349506,-500.0,0.00046564,7]
[337479292,1725689349539,-500.0,0.00046564,120]
[337479293,1725689349570,-223.76791935,0.00046564,120]
[337479294,1725689349601,-500.0,0.00046564,120]
[337479295,1725689349632,-500.0,0.00046564,7]
[337479296,1725689349662,-500.0,0.00046564,7]
[337479297,1725689349691,-500.0,0.00046564,120]
[337479298,1725689349726,-500.0,0.00046564,7]
[337479299,1725689349757,-500.0,0.00046564,120]
[337479300,1725689349785,-500.0,0.00046564,120]
[337479301,1725689349814,-500.0,0.00046564,7]
[337479302,1725689349842,-500.0,0.00046564,120]
[337479303,1725689349871,-500.0,0.00046564,120]
[337479304,1725689349901,-500.0,0.00046564,7]
[337479305,1725689349930,-500.0,0.00046564,120]
[337479306,1725689349959,-500.0,0.00046564,120]
[337479307,1725689349986,-355.05373758,0.00046564,120]
[337479308,1725689350014,-500.0,0.00046564,120]
[337479309,1725689350045,-500.0,0.00046564,120]
[337479310,1725689350077,-500.0,0.00046564,120]
[337479311,1725689350108,-500.0,0.00046564,120]
[337479312,1725689350141,-500.0,0.00046564,120]
[337479313,1725689350162,-500.0,0.00046564,120]
[337479314,1725689350309,-500.0,0.00046564,120]
[337479315,1725689350331,-500.0,0.00046564,120]
[337479316,1725689350354,-182.66549241,0.00046564,31]
[337479317,1725689350376,-809.05,0.00046565,30]
[337479318,1725689350396,-10185.91,0.00046565,3]
[337479319,1725689350418,-82436.3984485,0.00046565,5]
[337479320,1725689350441,-196743.40087059,0.00046565,5]
[337479322,1725689354103,-7358.41,0.00046555,3]
[337479323,1725689354129,-26360.56384059,0.00046565,5]
[337479324,1725689368138,-1514.4670764,0.00046475,28]
[337479325,1725689368160,-25668.60182957,0.00046565,5]
[337479375,1725689432424,-1360.95680267,0.00046565,3]
[337479377,1725689432436,-2187.65319733,0.00046565,3]
[337479379,1725689432447,-5540.57,0.00046565,3]
[337479381,1725689432457,-46877.60528325,0.00046565,5]
[337479383,1725689432466,-500.0,0.00046575,120]
[337479385,1725689432477,-232.07916442,0.00046575,120]
[337479387,1725689432497,-500.0,0.00046575,120]
[337479389,1725689432508,-500.0,0.00046575,120]
[337479391,1725689432519,-500.0,0.00046575,120]
[337479392,1725689432529,-500.0,0.00046575,120]
[337479394,1725689432539,-500.0,0.00046575,120]